bitfinex-derivatives/quotes_BTCF0:USTF0_20250125
["timestamp","ask_amount","ask_price","bid_price","bid_amount"]
[1737768346277,0.44614782,104680.0,104670.0,0.0001434]
[1737768348367,0.44614782,104680.0,104670.0,0.1530114]
[1737768348770,0.08534782,104680.0,104670.0,0.1530114]
[1737768349162,0.08534782,104680.0,104670.0,0.24052339]
[1737768349558,0.08534782,104680.0,104670.0,0.63477204]
[1737768349762,0.08534782,104680.0,104670.0,0.60132339]
[1737768349964,0.08534782,104680.0,104670.0,0.63477251]
[1737768352065,0.08534782,104680.0,104670.0,0.54726052]
[1737768352464,0.08534782,104680.0,104670.0,0.63477251]
[1737768353362,0.08534782,104680.0,104670.0,0.64414171]
[1737768354468,0.60841352,104690.0,104670.0,1.08648333]
[1737768354664,0.60841352,104690.0,104680.0,0.0968]
[1737768354871,0.60841352,104690.0,104680.0,0.13024912]
[1737768358978,0.72218421,104690.0,104680.0,0.30204146]
[1737768360577,0.8096962,104690.0,104680.0,0.20524094]
[1737768360881,0.8420962,104690.0,104680.0,0.17179234]
[1737768361783,0.152854,104680.0,104670.0,0.22888217]
[1737768362076,0.60116599,104680.0,104670.0,0.22888217]
[1737768362273,0.513654,104680.0,104670.0,0.22888217]
[1737768362674,0.513654,104680.0,104670.0,0.51565962]
[1737768366085,0.152854,104680.0,104670.0,0.51565962]
[1737768367987,0.40907608,104680.0,104670.0,0.0001434]
[1737768369782,0.25622208,104680.0,104670.0,0.24052339]
[1737768370687,0.25622208,104680.0,104670.0,0.60132339]
[1737768371889,0.19960561,104680.0,104670.0,0.60132339]
[1737768372292,0.19960561,104680.0,104670.0,0.73721555]
[1737768372683,0.19960561,104680.0,104670.0,0.69151229]
[1737768373378,0.19960561,104680.0,104670.0,0.63477184]
[1737768375282,0.35244461,104690.0,104670.0,1.44430791]
[1737768375592,0.35244461,104690.0,104680.0,0.0952]
[1737768375788,0.35244461,104690.0,104680.0,0.12864845]
[1737768376487,0.35244461,104690.0,104680.0,0.14358043]
[1737768377391,0.35244461,104690.0,104680.0,0.12864845]
[1737768377593,0.71324461,104690.0,104680.0,0.0952]
[1737768378589,0.35244461,104690.0,104680.0,0.0952]
[1737768379387,0.35244461,104690.0,104680.0,0.11013193]
[1737768379791,0.19960561,104690.0,104680.0,0.11013193]
[1737768382297,0.19960561,104690.0,104680.0,0.14357946]
[1737768382486,0.19960561,104690.0,104680.0,0.12864753]
[1737768383488,0.19960561,104690.0,104680.0,0.14357947]
[1737768383995,0.19960561,104690.0,104680.0,0.23109146]
[1737768384497,0.19960561,104690.0,104680.0,0.21615952]
[1737768386090,0.19960561,104690.0,104680.0,0.12864753]
[1737768387989,0.19960561,104690.0,104680.0,0.21615952]
[1737768388189,0.19960561,104690.0,104680.0,0.18271199]
[1737768388488,0.19960561,104690.0,104680.0,0.1976439]
[1737768389298,0.19960561,104690.0,104680.0,0.5584439]
[1737768389496,0.19960561,104690.0,104680.0,0.7112979]
[1737768391196,0.19960561,104690.0,104680.0,0.71129733]
[1737768392603,0.19960561,104690.0,104680.0,0.74474355]
[1737768393391,0.19960561,104690.0,104680.0,0.74474348]
[1737768393702,0.19960561,104690.0,104680.0,0.78655105]
[1737768394198,0.08583492,104690.0,104680.0,1.01528982]
[1737768396104,0.08583492,104690.0,104680.0,0.97348225]
[1737768397594,0.06433467,104690.0,104680.0,0.99737141]
[1737768398306,0.06433467,104690.0,104680.0,0.99737039]
[1737768399199,0.06433467,104690.0,104680.0,1.03917592]
[1737768403003,0.11391409,104700.0,104680.0,1.73788664]
[1737768403203,0.11391409,104700.0,104690.0,0.08751199]
[1737768403400,0.11391409,104700.0,104690.0,0.15977762]
[1737768403703,0.11391409,104700.0,104690.0,0.31261475]
[1737768403901,0.11391409,104700.0,104690.0,0.42589939]
[1737768404097,0.11391409,104700.0,104690.0,0.38409475]
[1737768404608,0.11391409,104700.0,104690.0,0.38409389]
[1737768405599,0.11391409,104700.0,104690.0,0.90413746]
[1737768405903,0.11391409,104700.0,104690.0,0.85006512]
[1737768406507,0.11391409,104700.0,104690.0,0.82617678]
[1737768406807,0.11377069,104710.0,104700.0,0.152825]
[1737768407004,0.11377069,104710.0,104700.0,0.7101672]
[1737768407403,0.11377069,104710.0,104700.0,0.87291278]
[1737768407612,0.11377069,104710.0,104700.0,0.89679637]
[1737768408503,0.11377069,104710.0,104700.0,0.79767919]
[1737768410409,0.11377069,104710.0,104700.0,0.79767611]
[1737768410711,0.11377069,104710.0,104700.0,0.82155952]
[1737768410910,0.11377069,104710.0,104700.0,0.8215595]
[1737768411303,0.0001434,104720.0,104710.0,0.15281]
[1737768411503,0.0001434,104720.0,104710.0,0.67336922]
[1737768412002,0.11377069,104730.0,104720.0,0.152795]
[1737768412205,0.11377069,104730.0,104720.0,0.96819262]
[1737768412510,0.09228077,104730.0,104720.0,1.04589507]
[1737768413618,0.14259479,104740.0,104730.0,0.152781]
[1737768413812,0.14259479,104740.0,104730.0,0.73695929]
[1737768415501,0.0001434,104740.0,104730.0,0.73695929]
[1737768417204,0.0001434,104740.0,104730.0,0.73695443]
[1737768417411,0.0001434,104740.0,104730.0,0.68745525]
[1737768417911,0.0001434,104740.0,104730.0,0.32665525]
[1737768418715,0.0001434,104740.0,104730.0,0.77496724]
[1737768419016,0.0001434,104740.0,104730.0,0.77496909]
[1737768419414,0.0001434,104740.0,104730.0,0.6874571]
[1737768419614,0.0001434,104740.0,104730.0,0.71133527]
[1737768419812,0.0001434,104740.0,104730.0,0.79884726]
[1737768420214,0.0001434,104740.0,104730.0,0.71133527]
[1737768420409,0.0001434,104740.0,104730.0,0.63989527]
[1737768420609,0.0001434,104740.0,104730.0,0.79884726]
[1737768420814,0.0001434,104740.0,104730.0,0.71133527]
[1737768421208,0.0001434,104740.0,104730.0,0.79884726]
[1737768421408,0.0325,104760.0,104740.0,0.152758]
[1737768421711,0.0325,104760.0,104750.0,0.08751199]
[1737768421912,0.0325,104760.0,104750.0,0.12631427]
[1737768422316,0.0325,104760.0,104750.0,0.27906159]
[1737768425428,0.0325,104760.0,104750.0,0.278798]
[1737768426515,0.0325,104760.0,104750.0,0.28842117]
[1737768428325,0.58463892,104770.0,104750.0,0.28842117]
[1737768429333,0.58463892,104770.0,104750.0,0.28842108]
[1737768429739,0.58463892,104770.0,104750.0,0.26454569]
[1737768431434,0.52313892,104770.0,104760.0,0.08751199]
[1737768431634,0.3933,104780.0,104760.0,0.13543411]
[1737768431836,0.54601,104780.0,104760.0,0.13543411]
[1737768432036,0.54601,104780.0,104760.0,0.28816611]
[1737768432232,0.54601,104780.0,104760.0,0.31966611]
[1737768434737,0.63352199,104780.0,104760.0,0.20065412]
[1737768434939,0.63352199,104780.0,104760.0,0.28816611]
[1737768435142,0.54601,104780.0,104760.0,0.28816611]
[1737768435446,0.63352199,104780.0,104760.0,0.28816611]
[1737768436139,0.64290401,104780.0,104760.0,0.28816611]
[1737768436343,0.55539202,104780.0,104760.0,0.28816611]
[1737768436940,0.55539202,104780.0,104760.0,0.31956611]
[1737768438746,0.64290401,104780.0,104760.0,0.31956611]
[1737768439243,0.64290401,104780.0,104760.0,0.31956459]
[1737768440747,0.64290401,104780.0,104760.0,0.30464399]
[1737768443340,0.44831199,104770.0,104760.0,0.033]
[1737768443643,0.57095701,104770.0,104760.0,0.03342374]
[1737768443946,0.152743,104760.0,104740.0,0.60466508]
[1737768444151,0.41823401,104750.0,104740.0,0.54925872]
[1737768444339,0.60237701,104760.0,104740.0,0.60669273]
[1737768444544,0.3608,104750.0,104740.0,0.50186508]
[1737768445648,0.3608,104750.0,104740.0,0.53195272]
[1737768446245,0.3608,104750.0,104740.0,0.30292805]
[1737768447246,0.3608,104750.0,104740.0,0.33635742]
[1737768447942,0.60107365,104750.0,104740.0,0.0318434]
[1737768448143,0.60107365,104750.0,104740.0,0.03357264]
[1737768448343,0.66337365,104750.0,104740.0,0.03357264]
[1737768449546,0.66337365,104750.0,104740.0,0.0001434]
[1737768450953,0.575852,104750.0,104740.0,0.0001434]
[1737768451144,0.513552,104750.0,104740.0,0.0001434]
[1737768451345,0.513552,104750.0,104740.0,0.0647434]
[1737768452453,0.513552,104750.0,104740.0,0.15226505]
[1737768452654,0.513552,104750.0,104740.0,0.0647434]
[1737768453049,0.3608,104750.0,104740.0,0.0647434]
[1737768453254,0.3608,104750.0,104740.0,0.30503105]
[1737768453759,0.3608,104750.0,104740.0,0.15226505]
[1737768454056,0.3608,104750.0,104740.0,0.0647434]
[1737768454258,0.513552,104750.0,104740.0,0.0647434]
[1737768455458,0.60107365,104750.0,104740.0,0.0647434]
[1737768455960,0.513552,104750.0,104740.0,0.0647434]
[1737768456255,0.60107365,104750.0,104740.0,0.0647434]
[1737768456658,0.513552,104750.0,104740.0,0.0647434]
[1737768464570,0.60107365,104750.0,104740.0,0.0329434]
[1737768465358,0.60107365,104750.0,104740.0,0.0001434]
[1737768465768,0.152779,104740.0,104720.0,0.82321991]
[1737768465963,0.44832165,104730.0,104720.0,0.82321991]
[1737768466166,0.60110265,104730.0,104720.0,0.29502467]
[1737768467374,0.513581,104730.0,104720.0,0.29502467]
[1737768469879,0.3608,104730.0,104720.0,0.53534132]
[1737768470572,0.5445124,104740.0,104720.0,0.53534132]
[1737768470976,0.5445124,104740.0,104720.0,0.48125318]
[1737768471170,0.5445124,104740.0,104720.0,0.25222851]
[1737768471171,0.68740291,104740.0,104720.0,0.25222851]
[1737768471974,0.69713647,104740.0,104720.0,0.61302851]
[1737768472176,0.66633647,104740.0,104720.0,0.61302851]
[1737768472773,0.66633647,104740.0,104720.0,0.579595]
[1737768472976,0.30553647,104740.0,104720.0,0.579595]
[1737768473573,0.30553647,104740.0,104730.0,0.0303]
[1737768473968,0.66633647,104740.0,104730.0,0.0303]
[1737768474972,0.6378312,104740.0,104730.0,0.0303]
[1737768476678,0.72535285,104740.0,104730.0,0.0303]
[1737768479676,0.86824336,104740.0,104730.0,0.0303]
[1737768479876,0.86824336,104740.0,104720.0,0.579595]
[1737768480278,0.86824336,104740.0,104720.0,0.61302885]
[1737768483888,0.11438524,104730.0,104720.0,0.78436498]
[1737768491390,0.11438524,104730.0,104720.0,0.75093113]
[1737768491779,0.11438524,104730.0,104720.0,0.9799558]
[1737768492191,0.11438524,104730.0,104720.0,1.01338944]
[1737768493087,0.11438524,104730.0,104720.0,0.9799558]
[1737768493892,0.11438524,104730.0,104720.0,1.0708471]
[1737768499993,0.11438524,104730.0,104720.0,1.18628842]
[1737768503397,0.11438524,104730.0,104720.0,1.47781144]
[1737768503599,0.1718429,104730.0,104720.0,1.47781144]
[1737768505910,0.11438524,104730.0,104720.0,1.47781144]
[1737768509800,0.11438524,104730.0,104720.0,1.51960111]
[1737768511409,0.11438524,104730.0,104720.0,1.57705877]
[1737768511599,0.11438524,104730.0,104720.0,1.50183546]
[1737768513207,0.11438524,104730.0,104720.0,1.53526467]
[1737768513705,0.3247553,104740.0,104730.0,0.152781]
[1737768513911,0.3247553,104740.0,104730.0,0.60373866]
[1737768514809,0.11452864,104740.0,104730.0,0.69462444]
[1737768514997,0.11452864,104740.0,104730.0,0.63716678]
[1737768516707,0.11452864,104740.0,104730.0,0.67895089]
[1737768517007,0.11452864,104740.0,104730.0,0.73640855]
[1737768517212,0.11452864,104740.0,104730.0,0.67895089]
[1737768519718,0.0001434,104740.0,104730.0,1.4855]
[1737768520418,0.0001434,104740.0,104730.0,1.44371589]
[1737768523718,0.0001434,104740.0,104730.0,1.45327916]
[1737768527119,0.0001434,104740.0,104730.0,1.495063]
[1737768527324,0.0001434,104740.0,104730.0,1.20353998]
[1737768527825,0.0001434,104740.0,104730.0,1.16175614]
[1737768533921,0.0001434,104740.0,104730.0,1.44723911]
[1737768538234,0.0001434,104740.0,104730.0,1.48902304]
[1737768539033,0.0001434,104740.0,104730.0,1.44723911]
[1737768541036,0.0001434,104740.0,104730.0,1.21899047]
[1737768544437,0.0001434,104740.0,104730.0,1.2607744]
[1737768544636,0.08595029,104740.0,104730.0,1.60198193]
[1737768548439,0.08595029,104740.0,104730.0,1.65601078]
[1737768550230,0.08595029,104740.0,104730.0,1.71346844]
[1737768550637,0.08595029,104740.0,104730.0,1.75368076]
[1737768551740,0.08595029,104740.0,104730.0,1.6962231]
[1737768552239,0.08595029,104740.0,104730.0,1.75368076]
[1737768552430,0.08595029,104740.0,104730.0,1.71346844]
[1737768552737,0.0001434,104740.0,104730.0,1.71346844]
[1737768555531,0.0001434,104740.0,104730.0,1.67168451]
[1737768559443,0.0001434,104740.0,104730.0,1.33087821]
[1737768559637,0.0001434,104740.0,104730.0,1.27342055]
[1737768559834,0.0001434,104740.0,104730.0,1.33087821]
[1737768560845,0.0001434,104740.0,104730.0,1.27342055]
[1737768562536,0.0001434,104740.0,104730.0,1.34478055]
[1737768563139,0.0001434,104740.0,104730.0,1.63049657]
[1737768566444,0.08595029,104740.0,104730.0,1.28928904]
[1737768567157,0.08595029,104740.0,104730.0,1.25658904]
[1737768567445,0.29617395,104740.0,104730.0,1.12777138]
[1737768567661,0.71443161,104740.0,104730.0,0.57119899]
[1737768567848,0.71443161,104740.0,104730.0,0.60463054]
[1737768568352,0.71443161,104740.0,104730.0,0.57119899]
[1737768568553,0.65697395,104740.0,104730.0,0.57119899]
[1737768569144,0.65697395,104740.0,104730.0,0.62865665]
[1737768569752,0.65697395,104740.0,104730.0,0.60463174]
[1737768570345,0.71405757,104740.0,104730.0,0.20490803]
[1737768571148,0.72340264,104740.0,104730.0,0.17147528]
[1737768574554,0.83778604,104740.0,104720.0,0.80642594]
[1737768574760,0.83778604,104740.0,104720.0,0.83985866]
[1737768575058,0.05745766,104730.0,104720.0,0.782401]
[1737768577862,0.14318751,104730.0,104720.0,0.782401]
[1737768578263,0.29596851,104730.0,104720.0,0.751501]
[1737768578459,0.29596851,104730.0,104720.0,0.35726828]
[1737768578761,0.32746851,104730.0,104720.0,0.35726828]
[1737768579162,0.68826851,104730.0,104720.0,0.20447528]
[1737768579359,0.68826851,104730.0,104720.0,0.17147528]
[1737768579761,0.75116851,104730.0,104720.0,0.17147528]
[1737768581661,0.77982206,104730.0,104710.0,1.20828775]
[1737768582066,0.77982206,104730.0,104710.0,1.24172445]
[1737768582977,0.05745766,104720.0,104710.0,1.24172445]
[1737768584670,0.05745766,104720.0,104710.0,1.20828775]
[1737768585078,0.77982206,104730.0,104710.0,1.20828775]
[1737768585281,0.6279644,104730.0,104710.0,1.26574541]
[1737768585475,0.6279644,104730.0,104720.0,0.0939]
[1737768585773,0.2671644,104730.0,104720.0,0.0939]
[1737768586076,0.2671644,104730.0,104720.0,0.246695]
[1737768586580,0.1143834,104730.0,104720.0,0.72241032]
[1737768586777,0.1143834,104730.0,104720.0,0.66495266]
[1737768587372,0.1143834,104730.0,104720.0,0.607495]
[1737768587578,0.1143834,104730.0,104720.0,0.66495266]
[1737768588880,0.1143834,104730.0,104720.0,0.607495]
[1737768589881,0.65685254,104740.0,104720.0,0.77897028]
[1737768590084,0.65685254,104740.0,104720.0,0.83642794]
[1737768591277,0.65685254,104740.0,104730.0,0.152781]
[1737768593681,0.77123594,104740.0,104730.0,0.152781]
[1737768594084,0.77123594,104740.0,104730.0,0.16230269]
[1737768594485,0.71377828,104740.0,104730.0,0.16230269]
[1737768596082,0.20021128,104740.0,104730.0,0.52310269]
[1737768596279,0.20021128,104740.0,104730.0,0.5565339]
[1737768596483,0.25766894,104740.0,104730.0,0.5565339]
[1737768597182,0.20021128,104740.0,104730.0,0.52310269]
[1737768597983,0.1145268,104740.0,104730.0,0.52310269]
[1737768598182,0.1145268,104740.0,104730.0,0.58056035]
[1737768598385,0.1145268,104740.0,104730.0,0.52310269]
[1737768599887,0.0001434,104740.0,104730.0,0.52310269]
[1737768601083,0.0001434,104740.0,104730.0,0.58056035]
[1737768602191,0.0001434,104740.0,104730.0,0.52310269]
[1737768602792,0.0001434,104740.0,104730.0,0.55653192]
[1737768602997,0.08597043,104740.0,104730.0,0.78485597]
[1737768603291,0.08597043,104740.0,104730.0,0.956099]
[1737768603590,0.08597043,104740.0,104730.0,1.01355666]
[1737768606383,0.08597043,104740.0,104730.0,1.07101325]
[1737768606588,0.08597043,104740.0,104730.0,0.78523154]
[1737768607995,0.17151578,104750.0,104740.0,0.152766]
[1737768608185,0.17151578,104750.0,104740.0,0.72338132]
[1737768608387,0.17151578,104750.0,104740.0,0.69934697]
[1737768608992,0.17151578,104750.0,104740.0,0.66592366]
[1737768611104,0.21019666,104760.0,104750.0,0.152752]
[1737768614791,0.62845432,104760.0,104740.0,0.41868152]
[1737768614997,0.57099666,104760.0,104740.0,0.41868152]
[1737768615296,0.21020966,104750.0,104740.0,0.38900871]
[1737768615491,0.183552,104750.0,104740.0,0.3890093]
[1737768616698,0.24100966,104750.0,104740.0,0.3890093]
[1737768617096,0.183552,104750.0,104740.0,0.3890093]
[1737768617690,0.183552,104750.0,104740.0,0.21798978]
[1737768618690,0.152752,104750.0,104740.0,0.27544744]
[1737768618992,0.152752,104750.0,104740.0,0.21798978]
[1737768620100,0.152752,104750.0,104740.0,0.184562]
[1737768620305,0.152752,104750.0,104740.0,0.24201966]
[1737768620503,0.152752,104750.0,104740.0,0.27441966]
[1737768621893,0.14304505,104760.0,104750.0,0.152752]
[1737768622094,0.14304505,104760.0,104750.0,0.64228966]
[1737768624090,0.17165406,104770.0,104750.0,0.54699532]
[1737768624400,0.14433159,104780.0,104770.0,0.152723]
[1737768624601,0.14433159,104780.0,104770.0,0.60440246]
[1737768625705,0.14433159,104780.0,104770.0,0.63439866]
[1737768625903,0.14289939,104780.0,104770.0,0.63439866]
[1737768627296,0.14289939,104780.0,104770.0,0.69737686]
[1737768628902,0.152698,104790.0,104770.0,0.69737686]
[1737768629306,0.152698,104790.0,104780.0,0.152708]
[1737768629499,0.152698,104790.0,104780.0,0.24016186]
[1737768632204,0.68508163,104800.0,104780.0,0.24016186]
[1737768632406,0.68508163,104800.0,104790.0,0.08745386]
[1737768632606,0.68508163,104800.0,104790.0,0.24014686]
[1737768634303,0.32428163,104800.0,104790.0,0.24014686]
[1737768638703,0.1311,104800.0,104790.0,0.32760072]
[1737768638923,0.1311,104800.0,104790.0,0.24014686]
[1737768639212,0.1311,104800.0,104790.0,0.24948975]
[1737768639404,0.1311,104800.0,104790.0,0.26440607]
[1737768639605,0.1311,104800.0,104790.0,0.29440607]
[1737768642515,0.1311,104800.0,104790.0,0.29440602]
[1737768642815,0.1,104800.0,104790.0,0.14171302]
[1737768643011,0.1,104800.0,104790.0,0.10237013]
[1737768643012,0.613479,104800.0,104790.0,0.10237013]
[1737768643217,0.613479,104800.0,104790.0,0.34251699]
[1737768643218,0.1,104800.0,104790.0,0.34251699]
[1737768645007,0.1,104800.0,104790.0,0.25506313]
[1737768645207,0.1,104800.0,104790.0,0.34251699]
[1737768645910,0.1,104800.0,104790.0,0.35194775]
[1737768647814,0.1,104800.0,104790.0,0.29176295]
[1737768648217,0.1,104800.0,104790.0,0.65256295]
[1737768648520,0.1,104800.0,104790.0,0.63764668]
[1737768649221,0.1,104800.0,104790.0,0.67105275]
[1737768650421,0.1,104800.0,104790.0,0.71281976]
[1737768651618,0.32570895,104840.0,104800.0,0.038169]
[1737768651823,0.32570895,104840.0,104830.0,0.20999646]
[1737768652416,0.15405489,104840.0,104830.0,0.20999646]
[1737768653527,0.15405489,104840.0,104830.0,0.05736146]
[1737768653720,0.30481635,104840.0,104820.0,0.57080646]
[1737768654027,0.41816146,104830.0,104810.0,0.28136486]
[1737768654324,0.21315,104820.0,104810.0,0.31476983]
[1737768654524,0.21315,104820.0,104810.0,0.29627846]
[1737768656821,0.57395,104820.0,104810.0,0.29627846]
[1737768657221,0.57395,104820.0,104810.0,0.14361846]
[1737768657427,0.57395,104820.0,104810.0,0.07241846]
[1737768657624,0.63131146,104820.0,104810.0,0.41440057]
[1737768657819,0.66138306,104820.0,104810.0,0.41440057]
[1737768659525,0.66138306,104820.0,104810.0,0.39948697]
[1737768660722,0.67097549,104820.0,104810.0,0.39948697]
[1737768661530,0.98515257,104820.0,104810.0,0.0001434]
[1737768661826,0.98515257,104820.0,104810.0,0.01506014]
[1737768666931,0.89771951,104820.0,104810.0,0.01506014]
[1737768667521,0.92801951,104820.0,104810.0,0.01506014]
[1737768668637,1.01545257,104820.0,104810.0,0.01506014]
[1737768668837,1.01545257,104820.0,104810.0,0.01505981]
[1737768671943,0.84379851,104820.0,104810.0,0.01505981]
[1737768678943,1.01545257,104820.0,104810.0,0.01505981]
[1737768679647,0.98539811,104820.0,104810.0,0.01505981]
[1737768682842,0.98539811,104820.0,104810.0,0.0001434]
[1737768684347,1.04277671,104820.0,104810.0,0.0001434]
[1737768684552,0.152679,104800.0,104790.0,0.0937]
[1737768684754,0.6282362,104800.0,104790.0,0.0937]
[1737768684953,0.5708576,104800.0,104790.0,0.0937]
[1737768686045,0.513479,104800.0,104790.0,0.0937]
[1737768686347,0.513479,104800.0,104790.0,0.1271151]
[1737768686545,0.513479,104800.0,104790.0,0.3371867]
[1737768687053,1.01680202,104800.0,104790.0,0.1844937]
[1737768687253,1.01680202,104800.0,104790.0,0.1271151]
[1737768687451,1.01680202,104800.0,104790.0,0.1844937]
[1737768689054,1.01680202,104800.0,104790.0,0.19941105]
[1737768689550,0.14237962,104800.0,104790.0,0.48064216]
[1737768689756,0.11255027,104800.0,104790.0,0.88321026]
[1737768690060,0.11255027,104800.0,104790.0,0.86829291]
[1737768691255,0.17179746,104810.0,104800.0,0.152679]
[1737768691463,0.17179746,104810.0,104800.0,0.66165081]
[1737768691653,0.17179746,104810.0,104800.0,0.7448855]
[1737768692050,0.17179746,104810.0,104800.0,0.63429271]
[1737768693053,0.17179746,104810.0,104800.0,0.18609361]
[1737768693251,0.17179746,104810.0,104800.0,0.29901123]
[1737768693453,0.17179746,104810.0,104800.0,0.25725361]
[1737768694060,0.53259746,104810.0,104800.0,0.12081371]
[1737768694357,0.68526146,104810.0,104800.0,0.03341461]
[1737768694959,0.5136074,104810.0,104800.0,0.26173866]
[1737768696259,0.3609434,104810.0,104800.0,0.26173866]
[1737768696655,0.3609434,104810.0,104800.0,0.22832405]
[1737768696862,0.3609434,104810.0,104800.0,0.38100305]
[1737768697361,0.3609434,104810.0,104800.0,0.46840215]
[1737768697761,0.0001434,104810.0,104800.0,0.46840215]
[1737768698064,0.0001434,104810.0,104800.0,0.97142764]
[1737768698359,0.0001434,104810.0,104800.0,1.01318532]
[1737768699152,0.0001434,104810.0,104800.0,0.97142764]
[1737768699356,0.0001434,104810.0,104800.0,0.86261201]
[1737768700255,0.0001434,104810.0,104800.0,0.80485692]
[1737768700462,0.0001434,104810.0,104800.0,0.90565703]
[1737768701466,0.0001434,104810.0,104800.0,0.94741398]
[1737768702157,0.0001434,104810.0,104800.0,1.20565703]
[1737768702462,0.0001434,104810.0,104800.0,1.24741367]
[1737768703461,0.0001434,104810.0,104800.0,1.30516876]
[1737768705563,0.0001434,104810.0,104800.0,1.26341212]
[1737768707867,0.0001434,104810.0,104800.0,1.6174389]
[1737768709568,0.0001434,104810.0,104800.0,1.704838]
[1737768709768,0.0001434,104810.0,104800.0,1.6174389]
[1737768711564,0.0001434,104810.0,104800.0,1.03508807]
[1737768711769,0.0001434,104810.0,104800.0,1.54808807]
[1737768713469,0.0001434,104810.0,104800.0,1.58984189]
[1737768713670,0.0001434,104810.0,104800.0,1.67445112]
[1737768714072,0.0001434,104810.0,104800.0,1.6326973]
[1737768714469,0.0001434,104810.0,104800.0,1.67445112]
[1737768714774,0.0001434,104810.0,104800.0,1.91553025]
[1737768715165,0.57795489,104840.0,104800.0,1.76285125]
[1737768715365,0.57795489,104840.0,104830.0,0.20997111]
[1737768720377,0.57795489,104840.0,104830.0,0.243374]
[1737768721172,0.57795489,104840.0,104830.0,0.20997111]
[1737768722571,0.69226886,104840.0,104830.0,0.20997111]
[1737768726280,0.69226886,104840.0,104830.0,0.243374]
[1737768731482,0.89240812,104840.0,104830.0,0.243374]
[1737768732886,0.89240812,104840.0,104830.0,0.090739]
[1737768733184,0.89240812,104840.0,104830.0,0.05733611]
[1737768735789,0.89240812,104840.0,104830.0,0.22745651]
[1737768736587,0.89240812,104840.0,104830.0,0.2608594]
[1737768736789,0.89240812,104840.0,104830.0,0.22745651]
[1737768741582,0.89240812,104840.0,104830.0,0.26085943]
[1737768742085,0.89240812,104840.0,104830.0,0.22745651]
[1737768742393,0.89240812,104840.0,104830.0,0.26085943]
[1737768744188,1.00708034,104840.0,104830.0,0.1701204]
[1737768744581,1.00708034,104840.0,104830.0,0.0703204]
[1737768747088,0.94974423,104840.0,104830.0,0.0703204]
[1737768747690,0.94974423,104840.0,104820.0,0.05747951]
[1737768747691,0.80694506,104840.0,104820.0,0.05747951]
[1737768747892,0.543935,104830.0,104820.0,0.05747951]
[1737768748791,0.543935,104830.0,104820.0,0.09088512]
[1737768749494,0.543935,104830.0,104820.0,0.05747951]
[1737768751400,0.14296981,104830.0,104820.0,0.26746562]
[1737768751698,0.14296981,104830.0,104820.0,0.36296918]
[1737768753501,0.14296981,104830.0,104820.0,0.43408918]
[1737768754188,0.20012764,104830.0,104820.0,0.43408918]
[1737768754390,0.20012764,104830.0,104820.0,0.40068562]
[1737768756292,0.56092764,104830.0,104820.0,0.34334951]
[1737768756497,0.56092764,104830.0,104820.0,0.31304951]
[1737768757199,0.56092764,104830.0,104820.0,0.37038562]
[1737768758187,0.20012764,104830.0,104820.0,0.37038562]
[1737768758393,0.20012764,104830.0,104820.0,0.38529779]
[1737768758596,0.20012764,104830.0,104820.0,0.41569779]
[1737768760201,0.20012764,104830.0,104820.0,0.44910104]
[1737768760404,0.20012764,104830.0,104820.0,0.43418887]
[1737768761505,0.20012764,104830.0,104820.0,0.449101]
[1737768771107,0.20012764,104830.0,104820.0,0.41569775]
[1737768773316,0.20012764,104830.0,104820.0,0.41569772]
[1737768774314,0.20012764,104830.0,104820.0,0.44910081]
[1737768774816,0.20012764,104830.0,104820.0,0.43418871]
[1737768775316,0.20012764,104830.0,104820.0,0.40078562]
[1737768776110,0.20012764,104830.0,104820.0,0.55642475]
[1737768779411,0.20012764,104830.0,104820.0,0.58982778]
[1737768779816,0.11435865,104830.0,104820.0,0.55642475]
[1737768781417,0.11435865,104830.0,104820.0,0.58982778]
[1737768783702,0.11435865,104830.0,104820.0,0.60473982]
[1737768784716,0.11435865,104830.0,104820.0,0.64649353]
[1737768785710,0.11435865,104830.0,104820.0,0.63158149]
[1737768787619,0.25732846,104830.0,104820.0,1.21266043]
[1737768789114,0.25732846,104830.0,104820.0,1.17090672]
[1737768793416,0.20022079,104830.0,104820.0,0.87523284]
[1737768794222,0.20022079,104830.0,104820.0,0.91698631]
[1737768794408,0.20022079,104830.0,104820.0,0.69836062]
[1737768794409,0.56102079,104830.0,104820.0,0.69836062]
[1737768794615,0.8013919,104830.0,104820.0,0.66495759]
[1737768794917,0.8013919,104830.0,104820.0,0.54571287]
[1737768796921,0.91579498,104830.0,104820.0,0.03354868]
[1737768798718,0.91579498,104830.0,104820.0,0.0001434]
[1737768801627,0.92517147,104830.0,104820.0,0.0001434]
[1737768802119,0.92517147,104830.0,104820.0,0.03354926]
[1737768802824,0.92517147,104830.0,104820.0,0.0001434]
[1737768804427,0.75351741,104830.0,104820.0,0.0001434]
[1737768806124,0.15265,104820.0,104810.0,0.22675913]
[1737768806425,0.69042222,104820.0,104810.0,0.260168]
[1737768806634,0.69042222,104820.0,104810.0,0.22675913]
[1737768807524,0.152664,104810.0,104800.0,0.51230759]
[1737768807826,0.60080011,104810.0,104800.0,0.51230759]
[1737768811829,0.71505487,104810.0,104800.0,0.0001434]
[1737768812746,0.61972698,104810.0,104790.0,0.00143123]
[1737768813040,0.63241511,104800.0,104790.0,0.00143123]
[1737768813237,0.68975122,104800.0,104790.0,0.00143123]
[1737768813538,0.152693,104790.0,104780.0,0.2268545]
[1737768813728,0.60292911,104790.0,104780.0,0.2268545]
[1737768813929,0.545593,104790.0,104780.0,0.28419061]
[1737768814139,0.545593,104790.0,104780.0,0.2268545]
[1737768814434,0.545593,104790.0,104780.0,0.28419061]
[1737768814737,0.545593,104790.0,104780.0,0.2268545]
[1737768814931,0.3929,104790.0,104780.0,0.28419061]
[1737768815133,0.3929,104790.0,104780.0,0.21013948]
[1737768816138,0.3929,104790.0,104780.0,0.15280337]
[1737768816437,0.3929,104790.0,104780.0,0.21013948]
[1737768817832,0.4024348,104790.0,104780.0,0.21013948]
[1737768819138,0.45977091,104790.0,104780.0,9.537e-05]
[1737768819444,0.61246391,104790.0,104780.0,9.537e-05]
[1737768819838,0.61246391,104790.0,104770.0,0.55416494]
[1737768820349,0.05733611,104780.0,104770.0,0.55416494]
[1737768821143,0.61246391,104790.0,104770.0,0.55416494]
[1737768822245,0.3608,104780.0,104770.0,0.19336494]
[1737768822635,0.3608,104780.0,104770.0,0.25070105]
[1737768823035,0.61246391,104790.0,104770.0,0.25070105]
[1737768823836,0.3608,104790.0,104780.0,0.21004411]
[1737768824040,0.3608,104790.0,104780.0,0.24154411]
[1737768824433,0.3608,104790.0,104780.0,0.27474411]
[1737768828438,0.3608,104790.0,104780.0,0.30816112]
[1737768828635,0.3608,104790.0,104780.0,0.27474411]
[1737768829450,0.3608,104790.0,104780.0,0.30816112]
[1737768830753,0.3608,104790.0,104780.0,0.27474411]
[1737768831350,0.3608,104790.0,104780.0,0.30816112]
[1737768832357,0.3608,104790.0,104780.0,0.27474411]
[1737768834953,0.44642176,104790.0,104780.0,0.27474411]